bitfinex-derivatives/quotes_ETHF0:USTF0_20250621
["timestamp","ask_amount","ask_price","bid_price","bid_amount"]
[1750480364929,4.24366791,2420.7,2420.5,5.19852599]
[1750480365233,3.00448791,2420.7,2420.6,1.23923]
[1750480365531,4.24587379,2420.7,2420.6,1.23923]
[1750480367137,4.24587379,2420.7,2420.5,5.19852599]
[1750480367433,3.00448791,2420.7,2420.5,5.19852599]
[1750480367737,3.00448791,2420.7,2420.6,1.23923]
[1750480367931,4.24597346,2420.7,2420.6,1.23923]
[1750480368234,4.24597346,2420.7,2420.5,5.19852599]
[1750480368534,3.00448791,2420.7,2420.5,5.19852599]
[1750480369236,4.24366791,2420.7,2420.5,5.19852599]
[1750480369535,3.00448791,2420.7,2420.5,5.19852599]
[1750480369739,3.00448791,2420.7,2420.5,5.13005]
[1750480370537,4.24367791,2420.7,2420.5,5.13005]
[1750480370839,4.24367791,2420.7,2420.6,0.06847599]
[1750480371037,5.4852328,2420.7,2420.6,0.06847599]
[1750480372337,30.6302328,2420.7,2420.6,0.06847599]
[1750480379134,30.6302328,2420.7,2420.6,1.30770599]
[1750480379135,29.3910428,2420.7,2420.6,1.30770599]
[1750480379441,30.6302228,2420.7,2420.6,0.06847599]
[1750480380140,28.95753489,2420.7,2420.6,0.06847599]
[1750480380440,28.95753489,2420.7,2420.6,1.30770599]
[1750480381441,27.71835489,2420.7,2420.6,1.30770599]
[1750480381944,28.95753489,2420.7,2420.6,0.06847599]
[1750480383029,3.81253489,2420.7,2420.6,0.06847599]
[1750480383234,27.71535489,2420.7,2420.6,1.30770599]
[1750480383641,28.95453489,2420.7,2420.6,1.30770599]
[1750480383942,27.71535489,2420.7,2420.6,1.30770599]
[1750480384742,28.95453489,2420.7,2420.6,1.30770599]
[1750480385344,27.71535489,2420.7,2420.6,1.30770599]
[1750480391049,28.95453489,2420.7,2420.6,1.30770599]
[1750480391445,27.71535489,2420.7,2420.6,1.30770599]
[1750480391647,28.95453489,2420.7,2420.6,0.06847599]
[1750480392447,27.71535489,2420.7,2420.6,1.30770599]
[1750480392949,28.95453489,2420.7,2420.6,0.06847599]
[1750480407861,32.16233489,2420.7,2420.6,0.06847599]
[1750480409555,3.09809,2420.6,2419.4,8.93592834]
[1750480409862,3.2078,2420.0,2419.8,1.67268791]
[1750480410062,31.25302791,2420.0,2419.7,1.23967]
[1750480410265,31.25302791,2420.0,2419.7,0.6804]
[1750480410664,32.55602791,2420.0,2419.7,1.92009]
[1750480410856,1.23959,2419.9,2419.7,1.00094063]
[1750480411056,1.303,2419.9,2419.7,2.24063063]
[1750480411263,25.134,2419.8,2419.7,2.24063063]
[1750480412667,3.2078,2420.0,2419.8,1.23964]
[1750480412965,25.134,2419.9,2419.8,1.23964]
[1750480413159,1.23964,2419.8,2419.7,0.32054063]
[1750480413360,25.134,2420.0,2419.9,1.23959]
[1750480413760,1.2394,2420.3,2420.0,1.23952]
[1750480413968,3.2078,2420.5,2420.0,6.473]
[1750480414166,3.2078,2420.5,2420.3,1.23935]
[1750480414466,3.2078,2420.5,2420.4,0.6516]
[1750480416465,28.3428,2420.5,2420.4,0.6516]
[1750480417467,3.2078,2420.5,2420.4,1.89093]
[1750480417765,28.3428,2420.5,2420.4,1.89093]
[1750480419763,3.2078,2420.5,2420.4,1.89093]
[1750480420067,25.134,2420.7,2420.6,1.23923]
[1750480420270,3.2078,2420.8,2420.7,1.23918]
[1750480421160,3.2078,2420.8,2420.7,2.53318]
[1750480421361,1.239,2421.1,2420.8,1.23908]
[1750480421672,28.3418,2421.2,2420.9,1.23904]
[1750480421864,3.2078,2421.2,2420.8,0.6425]
[1750480422168,3.2078,2421.2,2421.1,1.23898]
[1750480422567,3.2078,2421.2,2420.9,6.467]
[1750480422757,5.59868939,2421.2,2420.9,6.467]
[1750480422961,5.59868939,2421.2,2421.1,1.23898]
[1750480423670,2.39088939,2421.2,2421.1,1.23898]
[1750480424366,6.83761939,2421.2,2421.0,1.239]
[1750480424975,5.59868939,2421.2,2421.0,1.239]
[1750480425171,5.59868939,2421.2,2420.8,0.6425]
[1750480425367,2.39088939,2420.9,2420.8,0.6425]
[1750480425664,2.39088939,2420.9,2420.8,1.88163]
[1750480426175,1.23906,2421.0,2420.8,1.88163]
[1750480426466,2.64576,2421.0,2420.8,1.88163]
[1750480427074,1.4067,2421.0,2420.8,1.88163]
[1750480427478,2.64576,2421.0,2420.8,0.6425]
[1750480427670,2.64576,2421.0,2420.8,1.88162]
[1750480427871,1.3513,2420.9,2420.8,1.88162]
[1750480428378,1.3513,2420.9,2420.8,0.6425]
[1750480429575,1.3513,2420.9,2420.8,1.88163]
[1750480430672,1.3513,2420.9,2420.8,1.95010599]
[1750480431977,25.7731,2421.0,2420.9,1.23908]
[1750480432176,25.128,2421.0,2420.9,1.23908]
[1750480432674,25.128,2421.0,2420.8,0.71097599]
[1750480432675,0.7088,2421.1,2421.0,1.23903]
[1750480432877,25.8368,2421.1,2421.0,1.23903]
[1750480433071,28.22768939,2421.1,2421.0,1.23903]
[1750480433377,29.46666939,2421.1,2420.9,1.23904]
[1750480436277,25.127,2421.0,2420.9,1.23904]
[1750480437879,26.5476,2421.0,2420.9,1.23904]
[1750480438086,27.78663,2421.0,2420.9,1.23904]
[1750480438680,27.78663,2421.0,2420.8,1.95006599]
[1750480438881,27.78663,2421.0,2420.9,1.23908]
[1750480440482,27.78663,2421.0,2420.8,1.95006599]
[1750480440689,27.78563,2421.0,2420.9,1.23908]
[1750480441180,27.78563,2421.0,2420.8,1.95006599]
[1750480441483,27.78563,2421.0,2420.9,1.23908]
[1750480442479,27.78563,2421.0,2420.8,1.95006599]
[1750480442676,27.78563,2421.0,2420.9,1.23908]
[1750480442884,26.5466,2421.0,2420.9,1.23908]
[1750480443280,27.78563,2421.0,2420.9,1.23908]
[1750480443578,29.03312826,2421.0,2420.9,1.23908]
[1750480443982,27.79409826,2421.0,2420.9,1.23908]
[1750480444983,29.03312826,2421.0,2420.9,1.23908]
[1750480445180,1.24749826,2421.0,2420.9,1.23908]
[1750480445382,26.37249826,2421.0,2420.9,1.23908]
[1750480445781,26.37249826,2421.0,2420.9,1.30755599]
[1750480448780,1.24749826,2421.0,2420.9,1.30755599]
[1750480452784,1.24749826,2421.0,2420.9,2.00165599]
[1750480454088,1.24749826,2421.0,2420.9,1.30755599]
[1750480454390,1.92389826,2421.0,2420.9,1.30755599]
[1750480456192,3.26609826,2421.0,2420.9,1.30755599]
[1750480457990,1.92389826,2421.0,2420.9,1.30755599]
[1750480458187,1.24749826,2421.0,2420.9,1.30755599]
[1750480478909,3.2078,2421.8,2421.7,1.23867]
[1750480479208,28.3238,2421.8,2421.6,1.23869]
[1750480479408,28.3238,2421.8,2421.7,1.23867]
[1750480479901,29.0321,2421.8,2421.7,1.23867]
[1750480480206,3.9161,2421.8,2421.7,1.23867]
[1750480480396,29.0321,2421.8,2421.7,1.23867]
[1750480484403,3.9161,2421.8,2421.7,1.23867]
[1750480487923,0.7083,2421.8,2421.7,1.23867]
[1750480490527,0.7083,2421.8,2421.7,1.30714599]
[1750480491032,3.2078,2422.1,2422.0,1.23852]
[1750480491331,28.3158,2422.1,2422.0,1.23852]
[1750480492218,3.2078,2422.1,2422.0,1.23852]
[1750480492627,3.9121,2422.1,2422.0,1.23852]
[1750480492819,6.30298939,2422.1,2421.9,1.23853]
[1750480493023,6.30298939,2422.1,2422.0,1.23852]
[1750480495021,31.40698939,2422.1,2422.0,1.23852]
[1750480495730,32.68828939,2422.1,2422.0,1.23852]
[1750480503227,5.1934,2422.1,2422.0,1.23852]
[1750480503427,3.2078,2423.0,2422.9,1.23806]
[1750480504336,28.3068,2423.0,2422.9,1.23806]
[1750480505436,3.2078,2423.0,2422.9,1.23806]
[1750480505630,28.3058,2423.0,2422.9,1.23806]
[1750480505934,1.3275,2423.1,2422.9,1.23806]
[1750480506132,28.3058,2423.0,2422.9,1.23806]
[1750480506434,1.3275,2423.1,2422.9,1.23806]
[1750480506730,1.3275,2423.1,2423.0,3.62888939]
[1750480509339,25.7559,2423.2,2423.0,3.62888939]
[1750480509838,25.095,2423.2,2423.0,3.62885939]
[1750480510038,26.4616,2423.2,2423.0,3.62885939]
[1750480513542,1.3666,2423.2,2423.0,3.62885939]
[1750480516146,2.60451,2423.2,2423.0,3.62885939]
[1750480516343,2.60451,2423.2,2423.0,2.39088939]
[1750480516741,2.60451,2423.2,2423.0,3.62888939]
[1750480517435,2.60451,2423.2,2423.0,2.39088939]
[1750480517648,1.3666,2423.2,2423.0,3.62887939]
[1750480517837,2.60452,2423.2,2423.0,4.32877939]
[1750480518941,2.60451,2423.2,2423.0,4.32877939]
[1750480520945,2.60451,2423.2,2423.0,4.39725538]
[1750480533445,1.22952031,2423.1,2423.0,4.39725538]
[1750480534348,2.60451,2423.2,2423.0,4.39725538]
[1750480534753,1.22969435,2423.1,2423.0,4.39725538]
[1750480535255,1.22969393,2423.1,2423.0,4.39725538]
[1750480538154,1.22969393,2423.1,2423.0,2.45936538]
[1750480538354,1.22969393,2423.1,2423.0,3.69736538]
[1750480545358,1.22969393,2423.1,2423.0,4.02488399]
[1750480548862,1.22969393,2423.1,2423.0,3.3029202]
[1750480552963,1.22969393,2423.1,2423.0,4.01799833]
[1750480553757,8.89329271,2423.7,2423.0,4.01799833]
[1750480553758,3.2078,2423.9,2423.0,5.16400206]
[1750480553963,1.3302,2424.1,2423.8,2.38400373]
[1750480554161,1.3302,2424.1,2423.9,1.91512]
[1750480555561,1.3302,2424.1,2424.0,1.23749]
[1750480556063,1.3302,2424.1,2423.9,1.91512]
[1750480556563,1.3302,2424.1,2424.0,3.62149373]
[1750480559562,25.067,2424.4,2424.3,1.23734]
[1750480559767,25.067,2424.4,2424.0,2.38400373]
[1750480559768,27.0849,2424.4,2424.2,1.23736]
[1750480559955,1.369,2424.3,2424.0,2.38400373]
[1750480560266,25.7185,2424.6,2424.2,5.59180373]
[1750480560464,27.0875,2424.6,2424.5,1.23724]
[1750480560654,0.6525,2424.6,2424.5,1.23724]
[1750480560853,0.6489,2424.7,2424.6,1.23719]
[1750480561070,0.6489,2424.7,2424.6,3.62119373]
[1750480561864,0.6489,2424.7,2424.6,1.23719]
[1750480564270,0.6489,2424.7,2424.5,1.2372]
[1750480566062,0.6489,2424.7,2424.6,1.23719]
[1750480566260,0.6489,2424.7,2424.5,1.2372]
[1750480571070,5.6489,2424.7,2424.2,3.2078]
[1750480571269,1.23726,2424.5,2424.2,3.2078]
[1750480571475,25.055,2424.4,2424.2,3.2078]
[1750480571877,0.6802,2424.3,2424.2,4.44519]
[1750480573469,1.91754,2424.3,2424.2,3.2078]
[1750480573676,2.57094,2424.3,2424.2,3.2078]
[1750480575682,3.86684,2424.3,2424.2,3.2078]
[1750480582081,3.2078,2424.8,2424.2,3.2078]
[1750480582279,1.23728,2424.5,2424.3,2.38400373]
[1750480582481,1.23728,2424.5,2424.3,3.03180373]
[1750480582783,1.23724,2424.5,2424.3,3.03180373]
[1750480582984,25.052,2424.5,2424.3,3.03180373]
[1750480583282,25.052,2424.5,2424.3,4.26912373]
[1750480584077,9.6418,2424.8,2424.3,3.73970373]
[1750480584272,27.4865234,2424.7,2424.5,2.38400373]
[1750480584478,1.1983734,2424.6,2424.5,2.38400373]
[1750480584687,26.28815,2424.7,2424.5,2.38400373]
[1750480585780,25.051,2424.7,2424.5,2.38400373]
[1750480585986,1.23719,2424.6,2424.5,2.38400373]
[1750480589785,1.23724,2424.5,2424.3,3.73970373]
[1750480596894,1.386,2424.6,2424.3,3.73970373]
[1750480597101,1.23729,2424.4,2424.3,1.3557]
[1750480597904,2.0957,2424.6,2424.1,5.59180373]
[1750480598206,1.23739,2424.2,2424.1,5.59180373]
[1750480598595,2.54068,2424.3,2424.1,5.59180373]
[1750480598902,1.23738,2424.3,2424.1,6.82922373]
[1750480599393,1.2373,2424.4,2424.1,6.82922373]
[1750480600406,1.2373,2424.4,2424.2,0.6989]
[1750480600705,1.23734,2424.3,2424.2,0.6989]
[1750480601407,1.23732,2424.4,2424.2,0.6989]
[1750480602412,1.23734,2424.3,2424.2,0.6989]
[1750480609126,1.23739,2424.2,2424.1,5.59180373]
[1750480610427,1.23738,2424.3,2424.1,5.59180373]
[1750480611124,1.23738,2424.3,2424.2,0.06847599]
[1750480612227,1.23739,2424.2,2424.1,5.59180373]
[1750480614829,1.23739,2424.2,2424.1,2.38400373]
[1750480615028,1.23739,2424.2,2424.1,5.59180373]
[1750480615929,1.23738,2424.3,2424.1,5.59180373]
[1750480616121,1.23739,2424.2,2424.1,5.59180373]
[1750480619532,1.23739,2424.2,2424.1,6.28260373]
[1750480623334,1.23739,2424.2,2424.1,6.35107972]
[1750480624331,1.23739,2424.2,2424.1,6.28260373]
[1750480624835,1.23739,2424.2,2424.1,5.56621506]
[1750480631940,1.23738,2424.3,2424.1,5.56621506]
[1750480632939,1.23738,2424.3,2424.1,2.35841506]
[1750480633141,1.23738,2424.3,2424.1,5.56621506]
[1750480634239,1.34,2424.5,2424.1,6.80365506]
[1750480634240,1.23732,2424.4,2424.1,6.80365506]
[1750480634438,1.23732,2424.4,2424.3,1.66761506]
[1750480634642,2.43874088,2424.4,2424.3,1.66761506]
[1750480646852,1.20142088,2424.4,2424.3,2.90495506]
[1750480647055,1.2372,2424.6,2424.3,2.90495506]
[1750480647355,1.2372,2424.6,2424.5,4.87541506]
[1750480647548,2.43909736,2424.6,2424.5,4.87541506]
[1750480658563,1.20189736,2424.6,2424.5,4.87541506]
[1750480658760,1.20189736,2424.6,2424.5,6.11265506]
[1750480659068,25.026,2424.7,2424.5,6.11265506]
[1750480659562,26.26315,2424.7,2424.5,6.11265506]
[1750480659861,26.26315,2424.7,2424.5,4.87541506]
[1750480660162,26.26315,2424.7,2424.5,6.11265506]
[1750480660863,26.26315,2424.7,2424.5,4.87541506]
[1750480661160,1.23715,2424.7,2424.5,6.11264506]
[1750480661354,26.26115,2424.7,2424.5,6.11264506]
[1750480661763,1.23719,2424.6,2424.5,4.87541506]
[1750480662060,1.23719,2424.6,2424.5,5.20893525]
[1750480665271,1.23717,2424.7,2424.5,5.20893525]
[1750480665571,1.23717,2424.7,2424.6,1.66761506]
[1750480665772,2.4378689,2424.7,2424.6,1.66761506]
[1750480666968,2.4378689,2424.7,2424.6,4.87541506]
[1750480670971,2.4378689,2424.7,2424.6,1.66761506]
[1750480674476,1.2006989,2424.7,2424.6,1.66761506]
[1750480674774,2.4378389,2424.7,2424.6,1.66761506]
[1750480677775,1.2006989,2424.7,2424.6,1.66761506]
[1750480677975,2.4378389,2424.7,2424.6,1.66761506]
[1750480679378,1.2006989,2424.7,2424.6,1.66761506]
[1750480679677,2.4378389,2424.7,2424.6,1.66761506]
[1750480680075,1.2006989,2424.7,2424.6,2.90480506]
[1750480680779,1.3964,2425.0,2424.6,1.66761506]
[1750480681080,1.3964,2425.0,2424.8,3.2078]
[1750480681081,27.45420681,2424.9,2424.8,3.2078]
[1750480682178,27.45420681,2424.9,2424.8,4.87541506]
[1750480683275,2.43920681,2424.9,2424.8,4.87541506]
[1750480686577,3.84290681,2424.9,2424.8,4.87541506]
[1750480687380,1.23721,2424.6,2424.5,3.2078]
[1750480687584,1.23721,2424.6,2424.5,3.8608]
[1750480687880,1.23721,2424.6,2424.5,3.2078]
[1750480688880,2.61887,2424.7,2424.5,3.2078]
[1750480689379,1.3817,2424.6,2424.5,3.2078]
[1750480689580,2.61889,2424.6,2424.5,3.2078]
[1750480694281,2.61889,2424.6,2424.5,3.8658]
[1750480694588,2.61889,2424.6,2424.5,1.89524]
[1750480695583,2.61889,2424.6,2424.5,0.658]
[1750480695881,2.61889,2424.6,2424.5,1.89524]
[1750480698680,1.3817,2424.6,2424.5,1.89524]
[1750480698887,1.3817,2424.6,2424.5,3.56285506]
[1750480700387,2.61889,2424.6,2424.5,3.56285506]
[1750480702889,1.3817,2424.6,2424.5,3.56285506]
[1750480703395,2.61889,2424.6,2424.5,3.56285506]
[1750480707793,2.61889,2424.6,2424.5,2.32561506]
[1750480708090,1.23724,2424.5,2424.4,3.2078]
[1750480708292,1.23739,2424.2,2424.1,3.8576]
[1750480708598,1.23739,2424.2,2424.1,3.2078]
[1750480708987,1.23739,2424.2,2424.1,4.87541506]
[1750480718299,2.63128,2424.3,2424.1,4.87541506]
[1750480719002,1.23739,2424.2,2424.1,4.87541506]
[1750480721905,1.23739,2424.2,2424.1,1.66761506]
[1750480726194,1.23739,2424.2,2424.0,1.57219929]
[1750480726195,1.23748,2424.1,2424.0,1.66761506]
[1750480726400,1.23742,2424.2,2424.0,2.90509506]
[1750480726806,1.23742,2424.2,2424.1,1.23744]
[1750480727495,1.23733,2424.4,2424.2,1.23737]
[1750480727699,26.24033,2424.4,2424.3,2.32101506]
[1750480732418,27.43963441,2424.4,2424.3,2.32101506]
[1750480733815,28.84573441,2424.4,2424.3,2.32101506]
[1750480734608,27.60840441,2424.4,2424.2,1.66761506]
[1750480734918,2.64344,2424.3,2424.2,1.66761506]
[1750480735111,27.64244,2424.3,2424.2,1.66761506]
[1750480736415,28.84312551,2424.3,2424.2,1.66761506]
[1750480738515,3.84412551,2424.3,2424.2,1.66761506]
[1750480738815,28.84212551,2424.3,2424.2,1.66761506]
[1750480746816,1.23739,2424.2,2424.1,2.37381506]
[1750480747017,2.64429,2424.2,2424.1,2.37381506]
[1750480747818,2.64429,2424.2,2424.1,0.7062]
[1750480748922,3.84437172,2424.2,2424.1,0.7062]
[1750480749129,2.64429,2424.2,2424.1,0.7062]
[1750480749420,3.84437112,2424.2,2424.1,0.7062]
[1750480749921,3.84437843,2424.2,2424.1,0.7062]
[1750480750122,2.64429,2424.2,2424.1,0.7062]
[1750480750715,3.84443479,2424.2,2424.1,0.7062]
[1750480750919,12.48245985,2424.2,2423.5,1.66761506]
[1750480751119,1.23768,2423.7,2423.6,0.6525]
[1750480751810,1.23768,2423.7,2423.6,1.8902]
[1750480752220,24.992,2423.7,2423.6,0.6525]
[1750480752415,24.992,2423.7,2423.6,1.8902]
[1750480758029,1.2376,2423.8,2423.7,1.23765]
[1750480758229,24.992,2423.8,2423.7,2.90526506]
[1750480759529,26.2296,2423.8,2423.7,2.90526506]
[1750480760733,24.992,2423.8,2423.7,1.23765]
[1750480761031,24.992,2423.8,2423.7,2.90526506]
[1750480761230,24.991,2423.8,2423.7,2.90526506]
[1750480762731,4.6075,2424.0,2423.7,2.90526506]
[1750480762732,5.84504,2424.0,2423.8,1.2376]
[1750480762931,5.84504,2424.0,2423.9,2.33361506]
[1750480763135,30.83604,2424.0,2423.9,2.33361506]
[1750480764526,27.62824,2424.0,2423.9,2.33361506]
[1750480765932,2.63724,2424.0,2423.9,2.33361506]
[1750480766127,24.99,2424.0,2423.9,3.57115506]
[1750480767129,26.22749,2424.0,2423.9,3.57115506]
[1750480767332,24.99,2424.0,2423.9,3.57115506]
[1750480768721,26.22749,2424.0,2423.9,3.57115506]
[1750480770933,26.22749,2424.0,2423.9,2.33361506]
[1750480781144,24.99,2424.0,2423.6,1.23768]
[1750480781337,1.23761,2423.8,2423.6,2.90529506]
[1750480782845,1.23765,2423.7,2423.6,2.90529506]
[1750480783037,1.23762,2423.8,2423.6,2.90529506]
[1750480783347,1.23762,2423.8,2423.6,1.23768]
[1750480783546,1.23762,2423.8,2423.7,1.66761506]
[1750480783746,2.52232,2423.8,2423.7,1.66761506]
[1750480784438,2.52232,2423.8,2423.7,2.90526506]
[1750480785843,2.52232,2423.8,2423.7,1.66761506]
[1750480786947,2.52232,2423.8,2423.7,2.90526506]
[1750480787351,2.52232,2423.8,2423.7,1.66761506]
[1750480787545,2.52232,2423.8,2423.7,2.90526506]
[1750480796957,2.52232,2423.8,2423.7,1.66761506]
[1750480797455,2.52232,2423.8,2423.7,2.90526506]
[1750480799257,3.9169,2423.9,2423.8,1.2376]
[1750480799258,3.2078,2423.9,2423.8,1.2376]
[1750480799555,28.1868,2423.9,2423.8,1.2376]
[1750480799751,28.1868,2423.9,2423.8,1.9272]
[1750480800853,3.2078,2423.9,2423.8,1.9272]
[1750480801060,3.2078,2424.3,2423.8,8.74921506]
[1750480801262,28.1858,2424.3,2424.2,2.90500506]
[1750480801454,4.40831543,2424.3,2424.2,2.90500506]
[1750480801651,3.2078,2424.3,2424.2,2.90500506]
[1750480802056,2.64321,2424.6,2424.5,1.23724]
[1750480802057,4.6138,2424.6,2424.5,1.23724]
[1750480802264,5.81446626,2424.6,2424.5,1.66761506]
[1750480802564,30.79246626,2424.6,2424.5,2.90485506]
[1750480802961,30.79246626,2424.6,2424.5,1.23724]
[1750480803262,29.5918,2424.6,2424.5,1.23724]
[1750480803455,4.6138,2424.6,2424.5,1.23724]
[1750480803855,24.976,2424.7,2424.5,1.23724]
[1750480804055,24.976,2424.7,2424.6,1.23719]
[1750480804357,12.23177,2424.9,2424.4,2.38160204]
[1750480804661,27.4120228,2424.8,2424.6,1.23717]
[1750480804864,1.23715,2424.7,2424.5,1.23722]
[1750480805360,1.23715,2424.7,2424.6,3.02560204]
[1750480805562,1.23715,2424.7,2424.6,0.644]
[1750480806853,2.52955,2424.7,2424.6,0.644]
[1750480807056,1.2924,2424.7,2424.4,8.77260204]
[1750480807357,1.23723,2424.6,2424.4,7.0867]
[1750480807759,2.52963,2424.6,2424.4,7.0867]
[1750480808261,1.23724,2424.5,2424.4,7.0867]
[1750480812462,1.23724,2424.5,2424.4,6.391]
[1750480814965,1.23724,2424.5,2424.3,2.58744]
[1750480817162,1.23726,2424.5,2424.3,2.58744]
[1750480817562,30.70643,2424.6,2424.4,1.23727]
[1750480817868,1.23724,2424.5,2424.4,1.23727]
[1750480818968,1.23724,2424.5,2424.4,3.61887204]
[1750480819669,1.23724,2424.5,2424.4,2.38160204]
[1750480821270,1.23724,2424.5,2424.4,3.61889204]
[1750480821466,27.49862,2424.6,2424.4,3.61889204]
[1750480821865,2.52962,2424.6,2424.4,3.61889204]
[1750480822164,26.20322,2424.6,2424.5,1.23724]
[1750480822873,26.20322,2424.6,2424.4,3.61885204]
[1750480823170,1.23722,2424.6,2424.5,1.23724]
[1750480823571,1.23722,2424.6,2424.4,3.61886204]
[1750480824870,1.23722,2424.6,2424.5,1.66712075]
[1750480827375,1.23722,2424.6,2424.5,2.90436075]
[1750480827877,1.23717,2424.7,2424.5,2.90436075]
[1750480828370,1.23717,2424.7,2424.6,1.89769]
[1750480828768,1.23717,2424.7,2424.6,0.6605]
[1750480828970,1.23711,2424.8,2424.6,1.89769]
[1750480829275,1.23711,2424.8,2424.7,1.66712075]
[1750480829476,2.43082939,2424.8,2424.7,1.66712075]
[1750480832178,1.19371939,2424.8,2424.7,2.90426075]
[1750480832374,3.2078,2425.2,2424.9,1.23703]
[1750480832677,2.43201998,2425.1,2425.0,2.36172075]
[1750480834675,2.43201998,2425.1,2425.0,0.6946]
[1750480835377,3.73861998,2425.1,2425.0,0.6946]
[1750480836379,4.39031998,2425.1,2425.0,0.6946]
[1750480840182,3.19526,2425.1,2425.0,0.6946]
[1750480840481,3.73969496,2425.1,2425.0,0.6946]
[1750480840682,2.54356,2425.1,2425.0,0.6946]
[1750480840877,3.73969526,2425.1,2425.0,0.6946]
[1750480841585,2.54356,2425.1,2425.0,0.6946]
[1750480844085,4.4447,2425.2,2425.0,1.93158]
[1750480844281,29.4027,2425.2,2425.0,1.93158]
[1750480844483,1.23693,2425.1,2425.0,1.93158]
[1750480845585,1.23693,2425.1,2424.7,7.37728868]
[1750480845586,1.23705,2424.9,2424.7,8.61438868]
[1750480845785,2.7019,2425.1,2424.7,9.28258868]
[1750480846085,1.3812,2424.8,2424.7,9.28258868]
[1750480854793,1.3812,2424.8,2424.7,11.66344639]
[1750480854999,1.3812,2424.8,2424.7,11.32735771]
[1750480855998,1.3812,2424.8,2424.7,10.67015771]
[1750480857992,2.61829,2424.8,2424.7,10.67015771]
[1750480858495,1.3812,2424.8,2424.7,10.67015771]
[1750480863295,1.23702,2425.0,2424.7,9.43305771]
[1750480863487,1.23702,2425.0,2424.9,1.23703]
[1750480863689,2.43540668,2425.0,2424.9,1.23703]
[1750480864698,2.43540668,2425.0,2424.9,3.61788771]
[1750480865098,1.19838668,2425.0,2424.9,3.61788771]
[1750480865796,2.43536668,2425.0,2424.9,3.61788771]
[1750480866300,2.43536668,2425.0,2424.9,2.38085771]
[1750480866996,2.43536668,2425.0,2424.9,3.61788771]
[1750480867198,2.43536668,2425.0,2424.9,2.38085771]
[1750480870802,2.43536668,2425.0,2424.9,1.66656035]
[1750480872903,1.23703,2424.9,2424.8,2.33776035]
[1750480873101,2.55403,2424.9,2424.8,1.66656035]
[1750480874000,2.55403,2424.9,2424.8,2.90365035]
[1750480874206,1.317,2424.9,2424.8,2.90365035]
[1750480874698,2.55403,2424.9,2424.8,1.66656035]
[1750480875808,1.23703,2424.9,2424.8,1.66656035]
[1750480876804,1.23703,2424.9,2424.8,2.90365035]
[1750480879811,1.23703,2424.9,2424.8,1.66656035]
[1750480881110,1.23703,2424.9,2424.8,2.90365035]
[1750480882212,1.23703,2424.9,2424.8,1.66656035]
[1750480883010,1.23703,2424.9,2424.8,2.90365035]
[1750480883315,1.23702,2425.0,2424.8,2.90365035]
[1750480884905,1.23702,2425.0,2424.8,3.60105035]
[1750480886916,1.23703,2424.9,2424.8,3.60105035]
[1750480888819,1.23703,2424.9,2424.8,2.36396035]
[1750480889508,1.23703,2424.9,2424.8,3.60105035]
[1750480896315,1.23703,2424.9,2424.8,2.36396035]
[1750480897219,1.23703,2424.9,2424.8,3.60105035]
[1750480897817,1.23703,2424.9,2424.8,2.36396035]
[1750480900621,1.23703,2424.9,2424.8,3.60105035]
[1750480901119,3.66680467,2424.9,2424.8,3.60105035]
[1750480901522,2.45926578,2424.9,2424.8,3.60105035]
[1750480903023,1.22223578,2424.9,2424.8,3.60105035]
[1750480903225,1.23702,2425.0,2424.8,3.60105035]
[1750480903528,1.23703,2424.9,2424.8,3.60105035]
[1750480905025,1.23702,2425.0,2424.8,3.60105035]
[1750480906840,1.23703,2424.9,2424.8,3.60105035]
[1750480908940,1.23702,2425.0,2424.8,3.60105035]
[1750480909339,1.23703,2424.9,2424.8,3.60105035]
[1750480910837,4.43002733,2424.9,2424.7,1.66656035]
[1750480911041,2.45931733,2424.8,2424.7,1.66656035]
[1750480911230,2.45931733,2424.8,2424.7,2.35106035]
[1750480912233,2.45931733,2424.8,2424.7,0.6845]
[1750480912740,3.79461733,2424.8,2424.7,0.6845]
[1750480914233,2.45931733,2424.8,2424.7,0.6845]
[1750480914543,1.23706,2424.9,2424.7,1.92164]
[1750480914843,1.23706,2424.9,2424.8,1.66656035]
[1750480915146,2.45804689,2424.9,2424.8,1.66656035]
[1750480920045,2.45804689,2424.9,2424.8,2.90365035]
[1750480920242,1.23701,2425.0,2424.9,1.23703]
[1750480920449,1.23696,2425.1,2425.0,0.6856]
[1750480920745,2.45791007,2425.1,2425.0,2.35216035]
[1750480920945,3.74971007,2425.1,2425.0,2.35216035]
[1750480922949,2.52876,2425.1,2425.0,2.35216035]
[1750480923149,2.52876,2425.1,2425.0,3.58914035]
[1750480923150,1.23696,2425.1,2425.0,3.58914035]
[1750480923355,1.23696,2425.1,2425.0,2.35216035]
[1750480923740,2.61416,2425.1,2425.0,2.35216035]
[1750480927550,1.3772,2425.1,2424.6,4.77801102]
[1750480927853,1.23719,2424.6,2424.5,1.66656035]
[1750480928053,1.23719,2424.6,2424.5,1.99072933]
[1750480928458,4.4916,2424.8,2424.5,1.99072933]
[1750480928648,2.52097,2424.7,2424.5,3.22795933]
[1750480928847,2.52097,2424.7,2424.6,1.92799]
[1750480928848,1.2838,2424.7,2424.6,1.92799]
[1750480929146,1.23709,2424.8,2424.6,1.92799]
[1750480929455,1.23709,2424.8,2424.7,1.66656035]
[1750480930752,1.23709,2424.8,2424.7,2.90370035]
[1750480931159,1.23709,2424.8,2424.7,1.66656035]
[1750480932655,1.23709,2424.8,2424.7,2.90370035]
[1750480932860,1.89836,2424.9,2424.7,2.90370035]
[1750480933054,1.23719,2424.6,2424.5,1.66656035]
[1750480933254,1.23719,2424.6,2424.5,8.03656035]
[1750480934160,1.23717,2424.7,2424.5,8.03656035]
[1750480934361,1.23717,2424.7,2424.5,9.27376035]
[1750480934559,1.23717,2424.7,2424.6,0.66]
[1750480940369,3.09298,2424.6,2423.9,3.2078]
[1750480940564,1.23747,2424.1,2423.9,1.66656035]
[1750480940765,1.23746,2424.1,2423.9,1.66656035]
[1750480941067,1.23746,2424.1,2424.0,0.6493]
[1750480944467,1.23744,2424.1,2424.0,0.6493]
[1750480951773,1.23754,2423.9,2423.8,2.21073302]